{"text_format":"1","workbook":"xlsx","n_sheets":13,"sheets":["Min Qualification Checklist","Plan Design","Geo Access","Vision Pricing","Claims","Provider Disruption - Retail","Provide Disruption - Non-Retail","Census","Bio","Implement","Acct Manage","Officer","Hold Harmless"],"not_rendered":{"charts":0,"images":4,"macros":0,"external_links":29,"defined_names":2474,"comments":0,"pivot_tables":0},"unopened":[],"bounds":{"document_bytes":16777216,"sheet_cells":100000,"rows_first":2000,"rows_last":500,"rows_between":2000,"halvings":0,"cell_chars":16384,"cell_head_chars":4096},"cells_cut":0,"cells_raw":0,"read":"whole","date_system":"1900"}

{"sheet":"Min Qualification Checklist","index":0,"n_rows":17,"n_cols":2,"rows_kept":17,"cut":false,"hidden":true,"merged":[[14,0,16,0],[5,0,5,1],[8,0,10,0],[11,0,13,0]]}
[]
[]
[]
[]
[]
["Request for Vision Proposal (RFP) for Montgomery County Agencies"]
["Minimum Qualification Checklist"]
["Vision Plan Criteria","Offerors Agreement of Compliance with Minimum Qualifications"]
["Offeror must duplicate the plan of benefits – description included in “Plan Design” worksheet. ","¨      Proposal complies "]
[null,"¨ Proposal does not comply"]
[null,"¨ Does not apply"]
["Offeror must have provider networks (Ophthalmologists/Optometrists) that at least meet access standard of 2 providers within 10 miles of 90% of MCA members.  ","¨ Proposal complies"]
[null,"¨      Proposal does not comply"]
[null,"¨      Does not apply"]
["Offeror must agree to utilize existing carrier claims history to continuously adjudicate the plan benefit frequency and maximum features","¨      Proposal complies"]
[null,"¨      Proposal does not comply"]
[null,"¨      Does not apply"]

{"sheet":"Plan Design","index":1,"n_rows":35,"n_cols":11,"rows_kept":35,"cut":false,"hidden":false,"merged":[[1,2,1,6],[4,3,4,6],[5,3,5,6],[28,3,28,5],[23,3,25,5],[23,2,25,2],[15,5,19,5],[6,3,6,6],[10,2,10,6],[33,3,33,5],[34,3,34,5],[23,6,25,6],[26,2,26,7],[23,7,25,7],[29,3,29,5],[30,3,30,5],[31,3,31,5],[32,3,32,5]]}
[]
[null,null,"Request for Vision Proposal  (RFP) for Montgomery College  - RFP 512-051"]
[]
[]
[null,null,"             VISION PLAN NAME:"]
[null,null,"CITY:"]
[null,null,"STATE:"]
[]
[null,null,"CURRENT PLAN DESIGN"]
[]
[null,null,null,null,null,null,null,null,null,null,"yes"]
[null,null,"Benefits","In-Network","Copay","Frequency","Deviation (Y/N)","Explanation",null,null,"no"]
[null,null,"Well/Vision Exam","Focus on your eyes and overall wellness",10,"every calendar year"]
[null,null,"Frames","$130 allowance for a wide selection of frames \n20% off amount over your allowance ","Included in prescription glasses ","every calendar year"]
[null,null,"Lenses","Single vision, lined bifocal, and lined trifocal lenses\nPolycarbonate lenses for dep. Child","Included in prescription glasses ","every calendar year"]
[null,null,"Lens Options",null,null,"every calendar year"]
[null,null,"Standard Progressive Lenses","Standard Progressive Lenses",50]
[null,null,"Premium Progressive lenses","Premium Progressive lenses","$80 - $90 "]
[null,null,"Costume progressive lenses","Costume progressive lenses","$120 - $160"]
[null,null,"Average 35-40% off  other lens options ","Average 35-40% off  other lens options "]
[]
[null,null,"Contact (Instead of glasses)","$130 allowance for contacts and contact lens exam (fitting and evaluation) \n15% off contact lens exam (fitting and evaluation)",0,"every calendar year "]
[null,null,"Diabetic Eyecare Program ","Services related to type 1 diabetes provided ",5,"as needed"]
[null,null,"Extra Savings and Discounts ","Glasses and Sunglasses  - 30% off additional glasses and sunglasses\nRetinal Screening 0 Guaranteed pricing on retinal screening\nLaser Vision Corrections \n(See plan doc for details)"]
[]
[]
[null,null,"Coverage with other Providers - Out-of-Network"]
[null,null,"Medically Necessary Contact Lenses "]
[null,null,"Exam","up to $52"]
[null,null,"Frame ","up to $70"]
[null,null,"Single Vision Lenses","up to $55"]
[null,null,"Lined Bifocal Lenses","up to $75"]
[null,null,"Lined Trifocal Lenses","up to $100"]
[null,null,"Progressive Lenses","up to $95"]
[null,null,"Contracts ","up to $105"]

{"sheet":"Geo Access","index":2,"n_rows":20,"n_cols":7,"rows_kept":20,"cut":false,"hidden":false,"merged":[[4,3,4,6],[7,2,7,6],[1,2,1,6],[15,2,15,6],[9,2,9,3],[10,2,10,3],[11,2,11,3],[12,2,12,3],[13,2,13,3]]}
[]
[null,null,"Request for Vision Proposal  (RFP) for Montgomery College - RFP (512-051) "]
[]
[]
[null,null,"VENDOR NAME:"]
[]
[]
[null,null,"1. Please prepare a  “Geo-Access” report using the parameters in the table below. Note that it is important that you follow the exact parameters. The report should show provider availability for general ophthalmologists, optometrists, and retail dispensing establishments. Please also provide information on those zip codes where the access standard is not met. Your report should note the 5-digit zip code, city name and county. Necessary census data is attached as an EXCEL file."]
[]
[null,null,"Type of Provider",null,"Number of Providers","Miles from Residence","Percentage Meeting Access"]
[null,null,"Ophthalmologists",null,2,10]
[null,null,"Optometrists",null,2,10]
[null,null,"Ophthalmologists/Optometrists",null,2,10]
[null,null,"Retail dispensing sites",null,2,10]
[]
[null,null,"2. How many provider locations do you have in the Washington Metro Area (207 - 209, 217, 200)(count each provider office only once, even if there is more than one provider in the office)?"]
[]
[null,null,"207- 209"]
[null,null,217]
[null,null,200]

{"sheet":"Vision Pricing","index":3,"n_rows":151,"n_cols":9,"rows_kept":151,"cut":false,"hidden":false,"merged":[[3,7,3,8],[7,7,7,8],[9,7,9,8],[23,7,23,8],[6,7,6,8],[4,7,4,8],[5,7,5,8],[8,7,8,8],[11,2,11,8],[12,7,12,8],[14,7,14,8],[15,7,15,8],[16,7,16,8],[19,7,19,8],[31,7,31,8],[25,7,25,8],[29,7,29,8],[26,7,26,8],[30,7,30,8],[27,7,27,8],[28,7,28,8],[22,7,22,8],[62,7,62,8],[34,7,34,8],[20,7,20,8],[21,7,21,8],[33,7,33,8],[32,7,32,8],[132,2,132,7],[79,7,79,8],[77,7,77,8],[78,7,78,8],[93,7,93,8],[89,7,89,8],[86,7,86,8],[92,7,92,8],[87,7,87,8],[150,3,150,4],[147,3,147,4],[148,3,148,4],[149,3,149,4],[76,7,76,8],[127,2,127,7],[91,7,91,8],[125,7,125,8],[90,7,90,8],[146,3,146,4],[81,7,81,8],[144,2,144,8],[88,7,88,8],[80,7,80,8],[137,2,137,7],[124,2,124,8],[71,7,71,8],[82,7,82,8],[83,7,83,8],[84,7,84,8],[60,7,60,8],[75,7,75,8],[74,7,74,8],[69,7,69,8],[70,7,70,8],[72,7,72,8],[73,7,73,8],[66,7,66,8],[67,7,67,8],[63,7,63,8],[64,7,64,8],[68,7,68,8],[65,7,65,8],[41,7,41,8],[37,7,37,8],[54,7,54,8],[51,7,51,8],[42,7,42,8],[40,7,40,8],[46,7,46,8],[49,7,49,8],[47,7,47,8],[48,7,48,8],[38,7,38,8],[39,7,39,8],[1,2,1,8],[50,7,50,8],[52,7,52,8],[61,7,61,8],[55,7,55,8],[57,7,57,8],[56,7,56,8],[59,7,59,8],[58,7,58,8],[53,7,53,8],[35,7,35,8],[36,7,36,8],[13,7,13,8],[24,7,24,8],[17,7,17,8],[18,7,18,8]]}
[]
[null,null,"Request for Vision Proposal  (RFP) for Montgomery College -\n RFP (512-051) "]
[]
[null,null,"Enrollment Assumptions",null,"Answer Format",null,"Format Type"]
[null,null,"Active -  Employees","Dollar, 2","dollar, 2","resp1stYrRateTier1","Dollar, 2",255]
[null,null,"Active -  Emp + Family ","Dollar, 2","dollar, 2","resp1stYrRateTier1","Dollar, 2",342]
[null,null,"Retiree -  Employees","Dollar, 2","dollar, 2","resp1stYrRateTier1","Dollar, 2",60]
[null,null,"Retiree -  Emp + Family ","Dollar, 2","dollar, 2","resp1stYrRateTier1","Dollar, 2",55]
[null,null,"Cobra ",null,null,null,null,1]
[null,null,"Total",null,null,null,null,{"$f":"SUM(H5:I9)","v":713}]
[]
[null,null,"Financial Information For Fully-Insured Program Proposed Premiums"]
[null,null,"Provide first year rates below:"]
[null,null,"Per Employee","Dollar, 2","resp1stYrRateTier1","Dollar, 2"]
[null,null,"Employee+Child","Dollar, 2","resp1stYrRateTier2","Dollar, 2"]
[null,null,"Employee+Spouse","Dollar, 2","resp1stYrRateTier3","Dollar, 2"]
[null,null,"Employee+Family","Dollar, 2","resp1stYrRateTier4","Dollar, 2"]
[null,null,"Provide second year maximum rate increase. ","Percentage, 2","resp2ndYrMaxRateIncrease","Percent, 2"]
[null,null,"Provide second year rates below:"]
[null,null,"Per Employee","Dollar, 2","resp2ndYrRateTier1","Dollar, 2"]
[null,null,"Employee+Child","Dollar, 2","resp2ndYrRateTier2","Dollar, 2"]
[null,null,"Employee+Spouse","Dollar, 2","resp2ndYrRateTier3","Dollar, 2"]
[null,null,"Employee+Family","Dollar, 2","resp2ndYrRateTier4","Dollar, 2"]
[null,null,"Provide third year maximum rate increase. ","Percentage, 2","resp3rdYrMaxRateIncrease","Percent, 2"]
[null,null,"Provide third year rates below:"]
[null,null,"Per Employee","Dollar, 2","resp3rdYrRateTier1","Dollar, 2"]
[null,null,"Employee+Child","Dollar, 2","resp3rdYrRateTier2","Dollar, 2"]
[null,null,"Employee+Spouse","Dollar, 2","resp3rdYrRateTier3","Dollar, 2"]
[null,null,"Employee+Family","Dollar, 2","resp3rdYrRateTier4","Dollar, 2"]
[null,null,"What will be the maximum % increase in rates for the fourth year renewal?","Percentage, 2","resp3rdYrMaxRateIncrease","Percent, 2"]
[null,null,"What will be the maximum % increase in rates for the fifth year renewal?","Percentage, 2","resp3rdYrMaxRateIncrease","Percent, 2"]
[null,null,"Administrative Services",null,"Answer Format",null,"Format Type"]
[null,null,"Indicate if the following items are included in your quoted fees. If there is an additional charge, indicate the charge and the basis for the charge."]
[null,null,"Network Access Fee","Listbox: Yes; No","drop down box","respNetAccFee","Listbox, ListYNNAExplain"]
[null,null,"Additional Charge","Dollar, 2","dollar, 2","respAddCharge6","Dollar, 2"]
[null,null,"Administrative Overhead","Listbox: Yes; No","drop down box","respAdminOverhead","Listbox, ListYNNAExplain"]
[null,null,"Additional Charge","Dollar, 2","dollar, 2","respAddCharge7","Dollar, 2"]
[null,null,"Claims Processing Fee","Listbox: Yes; No","drop down box","respClmProcessFee","Listbox, ListYNNAExplain"]
[null,null,"Additional Charge","Dollar, 2","dollar, 2","respAddCharge8","Dollar, 2"]
[null,null,"800 Telephone Links (installation and usage)","Listbox: Yes; No","drop down box","resp800TeleLinks2","Listbox, ListYNNAExplain"]
[null,null,"Additional Charge","Dollar, 2","dollar, 2","respAddCharge10","Dollar, 2"]
[null,null,"Reporting","Listbox: Yes; No","drop down box","respReporting2","Listbox, ListYNNAExplain"]
[null,null,"Additional Charge","Dollar, 2","dollar, 2","respAddCharge11","Dollar, 2"]
[]
[]
[]
[null,null,"Financial Information For Self-Insured Program",null,"Answer Format",null,"Format Type"]
[null,null,"Comment:  Please see the \"Census\" worksheet for eligibility assumptions."]
[null,null,"All quotes must be good for +/-15% enrollment fluctuations for each 12 month period."]
[null,null,"CY 2012"]
[null,null,"Incurred Fees (Per Employee Per Month)"]
[null,null,"Claims Administration","Dollar, 2","dollar, 2","respClmAdminMat","Dollar, 2"]
[null,null,"General Overhead","Dollar, 2","dollar, 2","respGenOverMat","Dollar, 2"]
[null,null,"Network Access Fees","Dollar, 2","dollar, 2","respNetAccFeeMat","Dollar, 2"]
[null,null,"Utilization Review Fees","Dollar, 2","dollar, 2","respUtilRevFeeMat","Dollar, 2"]
[null,null,"Other Fees (please describe)","Dollar, 2","dollar, 2","respOthFeeMat","Dollar, 2"]
[null,null,"Total"]
[null,null,"Claims Assumptions"]
[null,null,"Expected Mature Claims (PEPM)","Dollar, 2","dollar, 2","respExpPaidClmMat","Dollar, 2"]
[null,null,"Total Monthly Cost (PEPM)"]
[null,null,"CY 2012"]
[null,null,"Incurred Fees (Per Employee Per Month)"]
[null,null,"Claims Administration"]
[null,null,"General Overhead"]
[null,null,"Network Access Fees"]
[null,null,"Utilization Review Fees"]
[null,null,"Other Fees (please describe)"]
[null,null,"Total"]
[null,null,"Claims Assumptions"]
[null,null,"Expected Mature Claims (PEPM)"]
[null,null,"Total Monthly Cost (PEPM)"]
[null,null,"CY 2013"]
[null,null,"Incurred Fees (Per Employee Per Month)"]
[null,null,"Claims Administration"]
[null,null,"General Overhead"]
[null,null,"Network Access Fees"]
[null,null,"Utilization Review Fees"]
[null,null,"Other Fees (please describe)"]
[null,null,"Total"]
[null,null,"Claims Assumptions"]
[null,null,"Expected Mature Claims (PEPM)"]
[null,null,"Total Monthly Cost (PEPM)"]
[]
[null,null,"What will be the maximum % increase in fees for year 4?","Percentage, 2","percentage, 2","respMaxPerIn3","Percent, 2"]
[null,null,"What will be the maximum % increase in fees for year 5?"]
[]
[null,null,"Retention Charges",null,"Answer Format",null,"Format Type"]
[null,null,"Indicate if the following items are included in your retention charges. If there is an additional charge, indicate the charge and the basis for the charge."]
[null,null,"Pure Insurance or Reinsurance","Listbox: Yes; No","drop down box","respPureInsur1","Listbox, ListYNNAExplain"]
[null,null,"Additional Charge","Dollar, 2","dollar, 2","respAddCharge1","Dollar, 2"]
[null,null,"800 Telephone Links (installation and usage)","Listbox: Yes; No","drop down box","resp800TeleLinks1","Listbox, ListYNNAExplain"]
[null,null,"Additional Charge","Dollar, 2","dollar, 2","respAddCharge2","Dollar, 2"]
[null,null,"Reporting","Listbox: Yes; No","drop down box","respReporting1","Listbox, ListYNNAExplain"]
[null,null,"Additional Charge","Dollar, 2","dollar, 2","respAddCharge3","Dollar, 2"]
[null,null,"Large Case Management","Listbox: Yes; No","drop down box","respLgCaseMgmt","Listbox, ListYNNAExplain"]
[null,null,"Additional Charge","Dollar, 2","dollar, 2","respAddCharge4","Dollar, 2"]
[]
[]
[]
[]
[]
[]
[]
[]
[]
[]
[]
[]
[]
[]
[]
[]
[]
[]
[]
[]
[]
[]
[]
[]
[]
[]
[]
[]
[null,null,"For each of the popular lens options listed below, provide the actual price (in dollars) members would be charged at your network locations:"]
[]
[null,null,"Lens Options",null,null,null,null,"Covered","Charge"]
[null,null,"Anti-reflective Coatings"]
[null,null,"Essilor - Crizel",null,null,null,null,null,"Enter Charge"]
[null,null,"Hoya - HiVision",null,null,null,null,null,"Enter Charge"]
[null,null,"Legends 4.0 - ClearView",null,null,null,null,null,"Enter Charge"]
[null,null,"Zeiss - Carat",null,null,null,null,null,"Enter Charge"]
[null,null,"Progressive Lenses"]
[null,null,"Essilor - Definity",null,null,null,null,null,"Enter Charge"]
[null,null,"Hoya - Hoyalux Summitt ECP",null,null,null,null,null,"Enter Charge"]
[null,null,"Shamir - Autograph",null,null,null,null,null,"Enter Charge"]
[null,null,"Szeiss - GT2",null,null,null,null,null,"Enter Charge"]
[null,null,"Photochromics"]
[null,null,"Photogray Extra - Glass (Single Vision Lens)",null,null,null,null,null,"Enter Charge"]
[null,null,"PhotoSun II - Glass (Single Vision Lens)",null,null,null,null,null,"Enter Charge"]
[null,null,"InstaShades - (Single Vision Lens)",null,null,null,null,null,"Enter Charge"]
[null,null,"Transitions - Plastic (Single Vision Lens)",null,null,null,null,null,"Enter Charge"]
[]
[]
[null,null,"Describe the financial arrangements for each type of participating provider. Put an \"X\" in each box that applies."]
[]
[null,null,"Payment Type","Payment Type",null,"Ophthalmologists","Optometrists","Optometrists","Ophthalmologists"]
[null,null,"Fee Schedule","Fee Schedule"]
[null,null,"Fee Schedule","Discount Off Charges"]
[null,null,"Fee Schedule","Capitation"]
[null,null,"Fee Schedule","Flat Dispensing Fee"]

{"sheet":"Claims","index":4,"n_rows":18,"n_cols":3,"rows_kept":18,"cut":false,"hidden":false,"merged":[[4,4,4,6],[1,1,1,5],[4,1,5,1],[4,3,5,3],[4,2,5,2]]}
[]
[null,"Request for Vision Proposal  (RFP) for Montgomery College - RFP (512-051) "]
[null,"Claims"]
[]
[null,"Period","# of Employees Covered"]
[]
[null,"2012-03-01",705]
[null,"2012-02-01",718]
[null,"2012-01-01",678]
[null,"2011-12-01",670]
[null,"2011-11-01",668]
[null,"2011-10-01",672]
[null,"2011-09-01",660]
[null,"2011-08-01",660]
[null,"2011-07-01",655]
[null,"2011-06-01",665]
[null,"2011-05-01",660]
[null,"2011-04-01",660]

{"sheet":"Provider Disruption - Retail","index":5,"n_rows":93,"n_cols":8,"rows_kept":93,"cut":false,"hidden":false,"merged":[[4,1,4,7],[2,0,2,5],[3,0,3,1]]}
[]
[]
["Request for Vision Proposal  (RFP) for Montgomery College - RFP (512-051) "]
["Top Retail Providers "]
[]
[]
["Provider ID","Provider Name","Street Address","City","State","Zip Code","TAX ID/NPI ","In-Network\n(Yes or No)"]
[1,"Neeraj Bindal, OD","1101 S JOYCE ST STE B7","ARLINGTON","VA","22202","1770656167"]
[{"$f":"A8+1","v":2},"Alan Levy, OD","13010 MIDDLEBROOK RD","GERMANTOWN","MD","20874","1629129556"]
[{"$f":"A9+1","v":3},"Elizabeth Koski, OD","76 SOMERSET BLVD","CHARLES TOWN","WV","25414","1558374959"]
[4,"Nicholas Guzic, OD","910 FOXCROFT AVE","MARTINSBURG","WV","25401","1841375060"]
[5,"Paul Colbourne, OD","10338 BRISTOW CENTER DR","BRISTOW","VA","20136","1134286974"]
[6,"Barry Ephraim, OD","10518 CONNECTICUT AVE","KENSINGTON","MD","20895","1487735767"]
[7,"Bruce Hyatt, OD","409 W COLD SPRING LN","BALTIMORE","MD","21210","1649231101"]
[8,"Sanford Cohen, OD","15785 COLUMBIA PIKE","BURTONSVILLE","MD","20866","1407871742"]
[9,"Fawziya Mirza, OD","15785 COLUMBIA PIKE","BURTONSVILLE","MD","20866","1700811213"]
[10,"Mark Gonzalez, MD","8630 FENTON ST STE 7","SILVER SPRING","MD","20910","1356552426"]
[11,"William Gonzalez, MD","8630 FENTON ST STE 7","SILVER SPRING","MD","20910","1568575389"]
[12,"Helen Hooper, OD","5 CARROLL PLZ","WESTMINSTER","MD","21157","1619031853"]
[13,"Jeannie Chow, OD","412 MAIN ST","GAITHERSBURG","MD","20878","1265584999"]
[14,"Barbra Johnson, OD","5268 NICHOLSON LN STE D","KENSINGTON","MD","20895","1922140805"]
[15,"Kristen Runke, OD","9909 GEORGETOWN PIKE","GREAT FALLS","VA","22066","1679686042"]
[16,"Lisa Anderson, OD","9909 GEORGETOWN PIKE","GREAT FALLS","VA","22066","1952303042"]
[17,"Rose Wood, OD","101 EASTERN BLVD N","HAGERSTOWN","MD","21740","1063525681"]
[18,"Crystal Lee, OD","2273 BEL PRE RD","SILVER SPRING","MD","20906","1154408946"]
[19,"G Fechter, OD","9534 LIVINGSTON RD","FORT WASHINGTON","MD","20744","1861605552"]
[20,"Sami Abughannam, OD","15426 NEW HAMPSHIRE AVE","SILVER SPRING","MD","20905","1942311774"]
[21,"Katherine Ly, OD","1347 LAMBERTON DR","SILVER SPRING","MD","20902","1659412377"]
[22,"Steven Sopher, OD","8818 WALTHAM WOODS RD","BALTIMORE","MD","21234","1568514537"]
[23,"Mark Borsuk, OD","108 OLDE TOWNE AVE STE 16","GAITHERSBURG","MD","20877","1639171960"]
[24,"Theresa Chung, OD","1701 ROCKVILLE PK STE A4","ROCKVILLE","MD","20852","1053300616"]
[25,"Alan Gold, OD","1701 ROCKVILLE PK STE A4","ROCKVILLE","MD","20852","1265448633"]
[26,"Alan Gold, OD","80 MARKET ST","GAITHERSBURG","MD","20878","1265448633"]
[27,"Calvin Osterman, OD","80 MARKET ST","GAITHERSBURG","MD","20878","1558339739"]
[28,"Quocanh Vu, OD","8525 GEORGIA AVE","SILVER SPRING","MD","20910","1043288145"]
[29,"Theresa Chung, OD","6455 DOBBIN RD STE 47","COLUMBIA","MD","21045","1053300616"]
[30,"Kenneth Kisamore, OD","14929 SHADY GROVE UNIT K","ROCKVILLE","MD","20850","1154364800"]
[31,"Christina Generie, OD","18111 TOWN CENTER DR","OLNEY","MD","20832","1255432928"]
[32,"Alan Gold, OD","14929 SHADY GROVE UNIT K","ROCKVILLE","MD","20850","1265448633"]
[33,"Arnold Miller, OD","1800 M STREET NW","WASHINGTON","DC","20036","1336182088"]
[34,"George Shields, OD","1905 TOWNE CENTRE BLVD STE 110","ANNAPOLIS","MD","21401","1407952179"]
[35,"Ross Shoter, OD","4465 WILLARD AVE","CHEVY CHASE","MD","20815","1528001278"]
[36,"Craig Goren, OD","7254 WOODMONT AVE","BETHESDA","MD","20814","1528296456"]
[37,"Calvin Osterman, OD","13531 CONNECTICUT AVE","ASPEN HILL","MD","20906","1558339739"]
[38,"Mahtab Vaziri, OD","1841 FOUNTAIN DR","RESTON","VA","20190","1568405215"]
[39,"Ricky Gurprasad, OD","13531 CONNECTICUT AVE","ASPEN HILL","MD","20906","1639481997"]
[40,"Alexander Smith, OD","7915 TUCKERMAN LN","POTOMAC","MD","20854","1730122938"]
[41,"Nancy Cooper Gregory, OD","13531 CONNECTICUT AVE","ASPEN HILL","MD","20906","1932283579"]
[42,"Nancy Cooper Gregory, OD","20940 FREDERICK RD STE D","GERMANTOWN","MD","20876","1932283579"]
[43,"Amy Chu, OD","7915 TUCKERMAN LN","POTOMAC","MD","20854","1972685048"]
[44,"Barry Tilles, OD","558 GOVERNOR RITCHIE HWY STE E","SEVERNA PARK","MD","21146","1477651248"]
[45,"Nutaporn Sukontasup, OD","9150 BALTIMORE NATIONAL PIKE","ELLICOTT CITY","MD","21042","1104930817"]
[46,"Hollie Brannan, OD","9150 BALTIMORE NATIONAL PIKE","ELLICOTT CITY","MD","21042","1558391292"]
[47,"Benjamin Hendin, OD","9150 BALTIMORE NATIONAL PIKE","ELLICOTT CITY","MD","21042","1700979796"]
[48,"Stephen Flemke, OD","6030 DAYBREAK CIR STE A 550","CLARKSVILLE","MD","21029","1649315318"]
[49,"Kimoanh Thai, OD","800 PLEASANT DR STE 150","ROCKVILLE","MD","20850","1992776926"]
[50,"Stephen Polakoff, OD","413 S CAMP MEADE RD","LINTHICUM HEIGHTS","MD","21090","1265420921"]
[51,"Steven Schneid, OD","6919 LAUREL AVE","TAKOMA PARK","MD","20912","1043377021"]
[52,"Robert Teunis Jr, OD","16819 CRABBS BRANCH WAY","DERWOOD","MD","20855","1376629188"]
[53,"Mark Teunis, OD","16819 CRABBS BRANCH WAY","DERWOOD","MD","20855","1871517227"]
[54,"Irving Gan, OD","8925 FINGERBOARD RD STE E","FREDERICK","MD","21704","1679792683"]
[55,"Rebecca Hub, OD","8415 WOODSBORO PIKE STE AC","WALKERSVILLE","MD","21793","1043212467"]
[56,"Rachel Cohn, OD","1095 SEVEN LOCKS RD","POTOMAC","MD","20854","1457479834"]
[57,"1800CONTACTS",null,null,"MD"]
[58,"1800CONTACTS",null,null,"UT"]
[59,"ALLEGANY OPTICAL",null,null,"WV"]
[60,"ANDREWS OPTICAL",null,null,"CA"]
[61,"COLONIAL OPTICIANS",null,null,"MD"]
[62,"COSTCO",null,null,"MD"]
[63,"COSTCO CORPORATE",null,null,"MD"]
[64,"DAVID WAGNER MD",null,null,"MD"]
[65,"DR ROBERT GILLIGAN",null,null,"MD"]
[66,"DR RUBIN",null,null,"MD"]
[{"$f":"A73+1","v":67},"DR. MARSHALL KEYS",null,null,"MD"]
[68,"EMPIRE VISION CENTER INC",null,null,"NY"]
[69,"EYELAND EYE CARE CENTER",null,null,"MD"]
[70,"HOUR EYES",null,null,"MD"]
[71,"HOUR EYES INC",null,null,"TX"]
[72,"JOHN H MASON OD",null,null,"FL"]
[73,"KAISER",null,null,"DC"]
[74,"KAREN DUNLAP",null,null,"MD"]
[75,"LENSCRAFTERS",null,null,"MD"]
[76,"METROPOLITAN OPTHALMOLOGY ASSO",null,null,"MD"]
[77,"MILNE EYE MEDICAL",null,null,"MD"]
[78,"PHILIP NICHOLSON OD",null,null,"MD"]
[79,"QUALITY OPTICAL",null,null,"MD"]
[80,"ROBERT GILLIGAN",null,null,"MD"]
[81,"SEARS",null,null,"PA"]
[82,"VISION DIRECT",null,null,"MD"]
[83,"VISION DIRECT .COM",null,null,"MD"]
[84,"VISIONDIRECT",null,null,"WA"]
[85,"WALMART",null,null,"MD"]
[86,"WEBEYECARE",null,null,"MD"]

{"sheet":"Provide Disruption - Non-Retail","index":6,"n_rows":109,"n_cols":8,"rows_kept":109,"cut":false,"hidden":false,"merged":[[1,0,1,5],[2,0,2,1]]}
[]
["Request for Vision Proposal  (RFP) for Montgomery College - RFP (512-051) "]
["Top Retail Providers "]
[]
["Provider ID","Provider Name","Street Address","City","State","Zip Code","TAX ID","In-Network (Yes or No)"]
[1,"Sheetal Haria, OD","5500 BUCKEYSTOWN PIKE STE 876","FREDERICK","MD","21703","1437234077"]
[{"$f":"A6+1","v":2},"Jack Stern, OD","1305 W 7TH STREET STE 15A","FREDERICK","MD","21702","1548338171"]
[{"$f":"A7+1","v":3},"Jack Stern, OD","5500 BUCKEYSTOWN PIKE STE 876","FREDERICK","MD","21703","1548338171"]
[4,"Robert Lloyd, OD","1725B DUAL HWY","HAGERSTOWN","MD","21740","1811072036"]
[5,"Mohammad Ashfaq, OD","17301 VALLEY MALL RD","HAGERSTOWN","MD","21740","1396992145"]
[6,"Robert Lloyd, OD","17301 VALLEY MALL RD","HAGERSTOWN","MD","21740","1811072036"]
[7,"Libro Dizinno, MD","9834 GENESEE AVE STE 406","LA JOLLA","CA","92037","1619967809"]
[8,"Dona Richa, MD","200 HOSPITAL DR STE 600","GLEN BURNIE","MD","21061","1437273398"]
[9,"Brad Spagnolo, MD","200 HOSPITAL DR STE 600","GLEN BURNIE","MD","21061","1689679425"]
[10,"Emily OMeara, OD","5012 DORSEY HALL DR STE 105","ELLICOTT CITY","MD","21042","1164678090"]
[11,"Dana Taylor, OD","5012 DORSEY HALL DR STE 105","ELLICOTT CITY","MD","21042","1205863495"]
[12,"Gregory Katchuk, OD","4300 E WEST HWY","BETHESDA","MD","20814","1023190030"]
[13,"Marc Levy, OD","4300 E WEST HWY","BETHESDA","MD","20814","1275602211"]
[14,"Michael Berenhaus, OD","4300 E WEST HWY","BETHESDA","MD","20814","1407905128"]
[15,"Andrew Servinsky, OD","1410 FOREST DR STE 1","ANNAPOLIS","MD","21403","1962495705"]
[16,"Heather Erickson, OD","3066 E MERIDIAN PRK LOOP STE 2","WASILLA","AK","99654","1669511200"]
[17,"Kristine Verkaik, OD","2303 S BAY ST","EUSTIS","FL","32726","1700814357"]
[18,"Jeanne Murphy, OD","105 PINE BLUFF RD STE 1","SALISBURY","MD","21801","1508869843"]
[19,"Irving Gan, OD","23202 BREWERS TAVERN WAY","CLARKSBURG","MD","20871","1679792683"]
[20,"Vincente Simoncini, OD","7266 CRADLEROCK WAY","COLUMBIA","MD","21045","1265570014"]
[21,"Nancy Denton, OD","7266 CRADLEROCK WAY","COLUMBIA","MD","21045","1497950810"]
[22,"Stuart Schatz, OD","7305 BALTIMORE AVE STE BL202","COLLEGE PARK","MD","20740","1336218312"]
[23,"Craig Hoover, OD","691 LAUREL ST STE 100","CULPEPER","VA","22701","1104853605"]
[24,"David Goldberg, OD","6301 LITTLE RIVER TPKE STE 110","ALEXANDRIA","VA","22312","1942212428"]
[25,"Andrew Barrett, MD","3501 SILVERSIDE RD","WILMINGTON","DE","19810","1306899059"]
[26,"Robert Abel Jr, MD","272 CARTER DR STE 100","MIDDLETOWN","DE","19709","1699719815"]
[27,"Vincent Bertomeu, OD","8369 LEESBURG PIKE UNIT A","VIENNA","VA","22182","1003074139"]
[28,"Edward Schwartzberg, OD","19814 CENTURY BLVD","GERMANTOWN","MD","20874","1215969035"]
[29,"Tracy Aigner, OD","19814 CENTURY BLVD","GERMANTOWN","MD","20874","1235232414"]
[30,"Diana Pan, OD","19814 CENTURY BLVD","GERMANTOWN","MD","20874","1972891810"]
[31,"Douglas Johnson, OD","148 13TH ST SW","LARGO","FL","33770","1114925773"]
[32,"Sanford Cohen, OD","3933 FERRARA DR","WHEATON","MD","20906","1407871742"]
[33,"Padmini Nathan, OD","73 THOMAS JOHNSON DR STE 1","FREDERICK","MD","21702","1861550592"]
[34,"Leyla Najafi, OD","19415 DEERFIELD AVE STE 106","LANSDOWNE","VA","20176","1811965981"]
[35,"Ernest Langham, MD","491 30TH ST STE 201","OAKLAND","CA","94609","1659472827"]
[36,"Edward Pottlitzer, OD","2911 CHAPEL HILL RD STE 210","DOUGLASVILLE","GA","30135","1164555942"]
[37,"Beverly Miller, OD","10801 HICKORY RIDGE RD","COLUMBIA","MD","21044","1588636856"]
[38,"Stephen Benkusky, OD","103 W EDEN ST","EDENTON","NC","27932","1467405381"]
[39,"Gregory Foley, OD","635 PENNSYLVANIA AVE SE","WASHINGTON","DC","20003","1801889530"]
[40,"Jason Ludwig, OD","2 WISCONSIN CIR STE 200","CHEVY CHASE","MD","20815","1396827101"]
[41,"Steven Chado, OD","2060 YELLOW SPRINGS RD STE 104","FREDERICK","MD","21702","1154371532"]
[42,"Beverly Chado, OD","13061 WISTERIA DR","GERMANTOWN","MD","20874","1306897749"]
[43,"Sherrie Teddy, OD","2740 SEVEN SPRINGS BLVD","NEW PORT RICHEY","FL","34655","1720073984"]
[44,"Farhad Naseh, MD","19211 MONTGOMERY VILL AVE B21","MONTGOMERY VILLAGE","MD","20886","1245254630"]
[45,"April Omoto, OD","7248 S LAND PARK DR STE 204","SACRAMENTO","CA","95831","1477620847"]
[46,"Medhat Iskander, OD","771 E MASTEN CIR STE 109","MILFORD","DE","19963","1588630214"]
[47,"Laura Castillo, OD","771 E MASTEN CIR STE 109","MILFORD","DE","19963","1689648768"]
[48,"Timothy Smith, OD","1301 BRIDGEVILLE HWY","SEAFORD","DE","19973","1356573141"]
[49,"Sami Abughannam, OD","612 MAIN ST","LAUREL","MD","20707","1942311774"]
[50,"Howard Budner, OD","4110 ASPEN HILL RD STE 300","ROCKVILLE","MD","20853","1730120114"]
[51,"Isaac Kaopua Jr, OD","98-1247 KAAHUMANU ST STE 116","AIEA","HI","96701","1104982768"]
[52,"Gary Baziz, OD","1209 YORK RD STE 200","LUTHERVILLE","MD","21093","1104823459"]
[53,"Francisco Burgos, OD","1209 YORK RD STE 200","LUTHERVILLE","MD","21093","1114924495"]
[54,"Lauren Amanda Gormley, OD","1209 YORK RD STE 200","LUTHERVILLE","MD","21093","1225221575"]
[55,"Eric Williams, OD","301 ST PAUL PL STE 902","BALTIMORE","MD","21202","1689671463"]
[56,"Natasha Herz, MD","4701 RANDOLPH RD  STE G2","ROCKVILLE","MD","20852","1104830447"]
[57,"Jay Klessman, OD","1800 K ST NW STE 921","WASHINGTON","DC","20006","1437119880"]
[58,"Lee Moore Jr, OD","311 PROSPECT AVE","CHARLES TOWN","WV","25414","1306920913"]
[59,"Dawn Gill, OD","1560 OPOSSUMTOWN PIKE","FREDERICK","MD","21702","1417986233"]
[60,"Mark Farbman, OD","1560 OPOSSUMTOWN PIKE","FREDERICK","MD","21702","1952401234"]
[61,"Dina Mazeas, OD","21800 TOWNCENTER PLZ STE 259","STERLING","VA","20164","1760445993"]
[62,"Lenard Hammer, MD","18045 GEORGIA AVE","OLNEY","MD","20832","1306874383"]
[63,"Gordon Lui, MD","18045 GEORGIA AVE","OLNEY","MD","20832","1356381974"]
[64,"Cristina Rouiller, OD","18045 GEORGIA AVE","OLNEY","MD","20832","1811924855"]
[65,"Scott Becker, MD","18045 GEORGIA AVE","OLNEY","MD","20832","1851328314"]
[66,"George Brown, OD","8350 TRAFORD LN","SPRINGFIELD","VA","22152","1427012517"]
[{"$f":"A71+1","v":67},"Michael Zucker, OD","6843 N ORACLE RD","TUCSON","AZ","85704","1619910361"]
[68,"Adam Rubin, OD","702 RUSSELL AVE STE 105","GAITHERSBURG","MD","20877","1184633257"]
[69,"Gabriela Miller, OD","19221 MONTGOMERY VLG AVE # C11","GAITHERSBURG","MD","20886","1649349457"]
[70,"Chryssa Bender, OD","1517 RIDGESIDE DR","MOUNT AIRY","MD","21771","1356428171"]
[71,"Christopher Coleman, OD","1517 RIDGESIDE DR","MOUNT AIRY","MD","21771","1447219282"]
[72,"Beverly Miller, OD","5701 GREENBELT RD","COLLEGE PARK","MD","20740","1588636856"]
[73,"Michael Diffendall, OD","6804 RACE TRACK RD","BOWIE","MD","20715","1184667057"]
[74,"Kevin King, OD","8957 EDMONSTON RD STE G","GREENBELT","MD","20770","1437103066"]
[75,"Christine King, OD","8957 EDMONSTON RD STE G","GREENBELT","MD","20770","1457302481"]
[76,"Donald Cohen, OD","8957 EDMONSTON RD STE G","GREENBELT","MD","20770","1609882489"]
[77,"R Scott Penny, OD","1689 N BECHTLE AVE","SPRINGFIELD","OH","45504","1831194612"]
[78,"Ralph Teunis III, OD","5630 BRADLEY BLVD","BETHESDA","MD","20814","1265588354"]
[79,"Shannen Allen, MD","15005 SHADY GROVE RD STE 100","ROCKVILLE","MD","20850","1407876360"]
[80,"Terry Kwak, MD","15005 SHADY GROVE RD STE 100","ROCKVILLE","MD","20850","1497708184"]
[81,"Robert Feldman, MD","15005 SHADY GROVE RD STE 100","ROCKVILLE","MD","20850","1689610321"]
[82,"Nancy Surig, MD","15005 SHADY GROVE RD STE 100","ROCKVILLE","MD","20850","1871737676"]
[83,"Robert Chu, MD","5515 RANDOLPH RD","ROCKVILLE","MD","20852","1811997117"]
[84,"Robert Chu, MD","6333 EXECUTIVE BLVD","ROCKVILLE","MD","20852","1811997117"]
[85,"Lauren Fox Rubin, OD","414 HUNGERFORD DR STE 100","ROCKVILLE","MD","20850","1801097027"]
[86,"Pei Wang, OD","11125 ROCKVILLE PIKE STE 303","ROCKVILLE","MD","20852","1942384102"]
[87,"Benton Murphy III, MD","3954 SANDALWOOD LANE","PUEBLO","CO","81005","1194775213"]
[88,"David Weiss, OD","1700 N MOORE ST","ARLINGTON","VA","22209","1366447872"]
[89,"Gary Cassel, MD","8415 BELLONA LN STE 104","TOWSON","MD","21204","1124180880"]
[90,"Stephen Schaefer, OD","1401 WILLIAMS DR STE 101","GEORGETOWN","TX","78628","1285739391"]
[91,"Jason Stephenson, OD","2019 HIGHLAND AVE S","BIRMINGHAM","AL","35205","1245538388"]
[92,"Alan Glazier, OD","15200 SHADY GROVE RD STE 100","ROCKVILLE","MD","20850","1124083530"]
[93,"Wendy Rothman, OD","15200 SHADY GROVE RD STE 100","ROCKVILLE","MD","20850","1336240480"]
[94,"Alma Hernandez, OD","15200 SHADY GROVE RD STE 100","ROCKVILLE","MD","20850","1528214822"]
[95,"Hannah Yecheskel, OD","15200 SHADY GROVE RD STE 100","ROCKVILLE","MD","20850","1770683898"]
[96,"Stephen Glasser, OD","1050 17TH ST NW STE 200","WASHINGTON","DC","20036","1710067954"]
[97,"Suchi Sood, OD","3450 FORT MEADE RD STE 110","LAUREL","MD","20724","1760432371"]
[98,"Toni Forrest, OD","9314 OLD KEENE MILL RD STE A","BURKE","VA","22015","1437359866"]
[99,"Elizabeth Lobaugh, OD","3800 FAIRFAX DR STE 1","ARLINGTON","VA","22203","1053419895"]
[100,"Mallory Lovett, OD","6509 DEMOCRACY BLVD","BETHESDA","MD","20817","1609163765"]
[101,"Bryce Appelbaum, OD","6509 DEMOCRACY BLVD","BETHESDA","MD","20817","1881822609"]
[102,"Melinda Weinstein, OD","5743 CRAIN HWY","UPPER MARLBORO","MD","20772","1053455006"]
[103,"David Bittings, OD","200 WASHINGTON HTS MED CTR","WESTMINSTER","MD","21157","1972606325"]
[104,"Evan Wolf, MD","4505 E GREENSTREET CIR","WASILLA","AK","99654","1205801586"]

{"sheet":"Census","index":7,"n_rows":4,"n_cols":2,"rows_kept":4,"cut":false,"hidden":false,"merged":[[2,1,2,5],[5,1,5,11]]}
[]
[null,"Request for Vision Proposal  (RFP) for Montgomery College - RFP (512-051) "]
[]
[null,"Census"]

{"sheet":"Bio","index":8,"n_rows":5,"n_cols":4,"rows_kept":5,"cut":false,"hidden":true,"merged":[[4,1,44,5],[1,1,1,5],[2,4,2,5]]}
[]
[null,"Request for Vision Proposal (RFP) for Montgomery County Agencies"]
[null,"Bios of Account Team",null,"VENDOR NAME:"]
[]
[null,"Insert Bios here"]

{"sheet":"Implement","index":9,"n_rows":6,"n_cols":4,"rows_kept":6,"cut":false,"hidden":false,"merged":[[1,1,1,5],[3,4,3,5],[5,1,45,5],[2,1,2,5]]}
[]
[null,"Request for Vision Proposal  (RFP) for Montgomery College - RFP (512-051) "]
[]
[null,"Implementation Plan",null,"VENDOR NAME:"]
[]
[null,"Insert Implementation Plan here"]

{"sheet":"Acct Manage","index":10,"n_rows":6,"n_cols":4,"rows_kept":6,"cut":false,"hidden":false,"merged":[[1,1,1,5],[3,4,3,5],[5,1,45,5],[2,1,2,5]]}
[]
[null,"Request for Vision Proposal  (RFP) for Montgomery College - RFP (512-051) "]
[]
[null,"Account Management Plan",null,"VENDOR NAME:"]
[]
[null,"Insert Account Management Plan here"]

{"sheet":"Officer","index":11,"n_rows":31,"n_cols":4,"rows_kept":31,"cut":false,"hidden":false,"merged":[[1,3,1,4],[7,3,7,4],[23,3,23,4]]}
[]
[null,null,null,"Request for Vision Proposal  (RFP) for Montgomery College - \nRFP (512-051) "]
[null,null,null,"Officer Certification"]
[]
[null,null,null,"Please have an Officer review and sign this worksheet to confirm the information is valid."]
[null,null,null,"Please include the completed form with your proposal."]
[]
[null,null,null,"OFFICER'S STATEMENT"]
[null,null,null,"Vision Vendor Legal Name"]
[null,null,null,"Vision Vendor Marketing Name"]
[null,null,null,"Street Address"]
[null,null,null,"City"]
[null,null,null,"State"]
[null,null,null,"Zip"]
[null,null,null,"Phone Number"]
[null,null,null,"Fax Number"]
[null,null,null,"Web Address"]
[null,null,null,"Name of Officer completing statement"]
[null,null,null,"Title of Officer completing statement"]
[null,null,null,"Phone Number of Officer completing statement"]
[null,null,null,"Email Address of Officer completing statement"]
[]
[]
[null,null,null,"I certify that our response to Montgomery College 's RFP (Request for Proposal) is complete and accurate to the best of my knowledge and contains no material omissions or misstatements. I acknowledge that Montgomery College  will rely upon the information included in our response to make decisions concerning the vision benefits that are offered to their employees."]
[]
[]
[]
[null,null,null,"Officer's Signature"]
[]
[]
[null,null,null,"Date Signed"]

{"sheet":"Hold Harmless","index":12,"n_rows":14,"n_cols":3,"rows_kept":14,"cut":false,"hidden":false,"merged":[[1,2,1,3]]}
[]
[null,null,"Request for Vision Proposal  (RFP) for Montgomery College - RFP (512-051) "]
[]
[null,null,"Hold Harmless Language"]
[]
[null,null,"Vendor agrees to the following Hold Harmless language:"]
[]
[null,null,"a) Health plan shall indemnify and hold harmless Montgomery College , its respective directors, officers, employees (acting in the course of their employment, but not as claimants) and agents, against any and all liability or expense (including the cost of legal defense or settlement) which was caused by the malpractice of health care professionals under (health plan), which was caused by the professional services provided or not provided by health care professionals under (health plan), or which was caused by (health plan’s) negligent or intentional misconduct, breach of this Agreement, fraud, or its breach of fiduciary responsibility in the case of an action under ERISA, related to or arising out of this Agreement or The Client’s role as employer or Plan sponsor."]
[]
[null,null,"b) The party seeking indemnification under (a) above must notify the indemnifying party promptly in writing of any actual or threatened action, suit or proceeding to which it claims such indemnity applies.  Failure to notify the indemnifying party shall be deemed a waiver of the right to seek indemnification."]
[]
[null,null,"c) The party seeking indemnification may assume responsibility for the direction of its own defense at any time, including the right to settle or compromise any claim against it without the consent of the indemnifying party, provided that in doing so it shall be deemed to have waived its right to indemnification except in cases where the indemnifying party has declined to defend against the claim.  "]
[]
[null,null,"d) The indemnification obligations of (health plan) shall terminate upon the expiration of the Agreement except as to any matter concerning which a claim has been asserted by notice to the other party at the time of such expiration or within 365 days after effective date of Agreement termination."]